bitfinex/quotes_SOLUSD_20251006
["timestamp","ask_amount","ask_price","bid_price","bid_amount"]
[1759710105792,3.30512027,229.72,229.7,7.98329557]
[1759710106723,3.30512027,229.72,229.68,7.98329557]
[1759710106917,3.30512027,229.69,229.68,7.98329557]
[1759710107116,3.30512027,229.69,229.68,8.63329557]
[1759710108114,0.3,229.79,229.7,7.98329557]
[1759710108309,32.66,229.82,229.71,0.69]
[1759710108522,0.3,229.86,229.76,7.98329557]
[1759710108744,3.30512027,229.8,229.76,8.67329557]
[1759710108915,3.30512027,229.8,229.77,0.69]
[1759710109741,3.30512027,229.78,229.74,7.98329557]
[1759710110042,3.30512027,229.78,229.77,7.98329557]
[1759710110249,3.30512027,229.79,229.77,7.98329557]
[1759710110849,3.30512027,229.79,229.75,0.69]
[1759710111049,3.30512027,229.79,229.77,7.98329557]
[1759710111257,0.3,229.84,229.77,7.98329557]
[1759710111417,3.30512027,229.81,229.77,7.98329557]
[1759710111622,3.30512027,229.81,229.78,0.69]
[1759710111846,3.30512027,229.8,229.77,7.98329557]
[1759710112035,3.30512027,229.78,229.75,7.98329557]
[1759710112231,3.30512027,229.78,229.75,0.69]
[1759710113250,0.5,229.76,229.75,0.69]
[1759710114239,0.5,229.76,229.72,7.98329557]
[1759710114434,3.30512027,229.73,229.72,7.98329557]
[1759710114750,3.30512027,229.73,229.72,8.67329557]
[1759710116049,3.30512027,229.73,229.72,7.98329557]
[1759710116433,3.30512027,229.75,229.72,8.67329557]
[1759710117544,3.30512027,229.75,229.67,0.2]
[1759710117545,3.30512027,229.73,229.68,8.67329557]
[1759710117860,0.5,229.76,229.67,0.2]
[1759710117861,3.30512027,229.7,229.67,0.2]
[1759710118070,3.30512027,229.68,229.67,0.2]
[1759710121742,3.60512027,229.68,229.67,0.2]
[1759710122945,3.30512027,229.68,229.67,0.2]
[1759710123144,3.60512027,229.68,229.67,0.2]
[1759710124048,35.48512027,229.68,229.67,0.2]
[1759710124374,32.16,229.69,229.67,0.2]
[1759710124551,0.3,229.77,229.68,0.69]
[1759710124757,3.30512027,229.69,229.67,0.2]
[1759710125471,3.30512027,229.69,229.67,0.89]
[1759710125791,3.30512027,229.69,229.67,0.2]
[1759710126489,3.30512027,229.68,229.67,0.2]
[1759710128387,3.60512027,229.68,229.67,0.2]
[1759710130090,3.30512027,229.68,229.67,0.2]
[1759710130264,35.76512027,229.68,229.67,0.2]
[1759710130467,32.16,229.68,229.67,0.2]
[1759710130668,35.46512027,229.68,229.67,0.2]
[1759710130905,46.64159548,229.68,229.67,0.2]
[1759710131217,3.30512027,229.6,229.56,0.69]
[1759710131369,3.30512027,229.57,229.51,7.98329557]
[1759710131568,32.42,229.59,229.45,0.69]
[1759710131569,3.30512027,229.52,229.45,0.69]
[1759710131781,3.30512027,229.47,229.41,7.98329557]
[1759710131996,3.30512027,229.44,229.42,0.69]
[1759710132208,32.48,229.51,229.42,0.69]
[1759710132374,32.48,229.51,229.41,7.98329557]
[1759710132375,3.30512027,229.5,229.43,0.69]
[1759710132785,3.30512027,229.44,229.43,0.69]
[1759710132992,3.30512027,229.44,229.41,0.69]
[1759710133186,0.3,229.51,229.42,0.69]
[1759710133376,3.30512027,229.43,229.4,0.69]
[1759710133577,21.1,229.51,229.41,0.69]
[1759710133780,21.1,229.51,229.37,0.2]
[1759710133781,3.30512027,229.42,229.37,0.2]
[1759710133994,3.30512027,229.38,229.37,0.2]
[1759710134569,3.30512027,229.38,229.37,8.18329557]
[1759710134772,3.30512027,229.38,229.37,0.2]
[1759710135299,0.3,229.49,229.37,0.89]
[1759710135601,24.22,229.48,229.41,7.98329557]
[1759710135772,3.30512027,229.47,229.44,7.98329557]
[1759710135977,21.1,229.55,229.44,7.98329557]
[1759710135978,21.1,229.55,229.45,0.69]
[1759710136274,20.8,229.51,229.45,0.69]
[1759710136482,3.30512027,229.48,229.45,0.69]
[1759710136700,3.30512027,229.48,229.46,7.98329557]
[1759710137000,3.30512027,229.47,229.46,8.67329557]
[1759710137778,32.24,229.49,229.46,8.67329557]
[1759710138103,3.30512027,229.49,229.46,8.67329557]
[1759710138478,3.30512027,229.49,229.47,0.69]
[1759710138806,32.26,229.51,229.46,7.98329557]
[1759710138981,20.8,229.55,229.48,0.69]
[1759710139189,3.30512027,229.51,229.49,7.98329557]
[1759710139495,3.30512027,229.51,229.5,0.69]
[1759710140105,3.30512027,229.51,229.49,7.98329557]
[1759710140495,3.30512027,229.51,229.46,7.98329557]
[1759710140697,32.22,229.55,229.44,7.98329557]
[1759710140698,3.30512027,229.48,229.44,7.98329557]
[1759710141001,3.30512027,229.48,229.43,0.69]
[1759710141002,3.30512027,229.45,229.43,0.69]
[1759710141192,3.30512027,229.44,229.43,0.69]
[1759710141784,3.30512027,229.44,229.42,7.98329557]
[1759710142189,3.30512027,229.44,229.43,0.69]
[1759710142417,32.24,229.49,229.43,0.69]
[1759710142594,3.30512027,229.46,229.43,0.69]
[1759710143388,3.30512027,229.44,229.42,7.98329557]
[1759710144121,32.2,229.49,229.43,0.69]
[1759710144297,3.30512027,229.46,229.44,7.98329557]
[1759710144492,3.30512027,229.46,229.42,7.98329557]
[1759710144694,3.30512027,229.46,229.37,4.55973773]
[1759710144695,10.87647521,229.42,229.37,0.2]
[1759710144890,3.30512027,229.38,229.37,0.1]
[1759710145107,3.30512027,229.38,229.36,0.2]
[1759710145108,10.87647521,229.37,229.36,0.2]
[1759710145314,10.87647521,229.37,229.15,10.9095197]
[1759710145315,38.48671575,229.37,229.25,7.98329557]
[1759710145646,3.30512027,229.26,229.23,7.98329557]
[1759710145825,3.30512027,229.24,229.23,8.67329557]
[1759710146904,3.30512027,229.24,229.23,0.69]
[1759710147217,3.30512027,229.24,229.21,8.67329557]
[1759710147526,3.30512027,229.22,229.21,7.98329557]
[1759710147919,3.30512027,229.23,229.21,8.67329557]
[1759710148318,3.30512027,229.23,229.21,7.98329557]
[1759710148821,3.30512027,229.23,229.21,8.67329557]
[1759710149021,3.30512027,229.23,229.21,7.98329557]
[1759710149919,3.30512027,229.23,229.18,0.69]
[1759710150115,3.30512027,229.19,229.17,7.98329557]
[1759710150516,3.30512027,229.19,229.15,7.98329557]
[1759710150718,3.30512027,229.16,229.12,8.18329557]
[1759710150919,3.30512027,229.13,229.12,8.87329557]
[1759710151117,3.30512027,229.13,229.12,8.18329557]
[1759710151725,20.8,229.19,229.12,8.87329557]
[1759710151931,0.2,229.25,229.13,0.69]
[1759710152125,3.30512027,229.15,229.14,7.98329557]
[1759710152341,3.30512027,229.15,229.12,8.18329557]
[1759710152551,3.30512027,229.13,229.12,8.18329557]
[1759710153656,3.30512027,229.13,229.12,0.2]
[1759710153827,3.50512027,229.13,229.05,7.98329557]
[1759710154140,3.30512027,229.06,229.03,0.71]
[1759710154324,0.2,229.13,229.06,7.98329557]
[1759710154645,3.30512027,229.07,229.04,0.71]
[1759710154939,0.2,229.24,229.09,7.98329557]
[1759710155148,3.30512027,229.15,229.13,7.98329557]
[1759710155346,15.48,229.23,229.14,0.71]
[1759710155549,3.30512027,229.16,229.15,7.98329557]
[1759710155749,32.4,229.22,229.15,8.69329557]
[1759710155933,3.30512027,229.16,229.15,8.69329557]
[1759710156133,3.30512027,229.16,229.15,7.98329557]
[1759710156455,10.87647521,229.28,229.19,7.98329557]
[1759710156456,32.42,229.28,229.19,7.98329557]
[1759710156640,3.30512027,229.21,229.19,8.69329557]
[1759710156826,22.28,229.28,229.22,7.98329557]
[1759710157021,3.30512027,229.23,229.22,7.98329557]
[1759710157432,45.15756435,229.4,229.22,7.98329557]
[1759710157433,0.2,229.38,229.3,7.98329557]
[1759710157633,13.3796225,229.45,229.13,24.36420334]
[1759710157634,3.30512027,229.31,229.24,7.98329557]
[1759710157848,32.62,229.3,229.21,7.98329557]
[1759710158029,3.30512027,229.22,229.17,8.69329557]
[1759710158224,3.30512027,229.22,229.06,43.35382785]
[1759710158225,20.8,229.27,229.22,7.98329557]
[1759710158423,16.37556133,229.42,229.24,7.98329557]
[1759710158647,3.30512027,229.35,229.25,0.71]
[1759710158880,3.30512027,229.27,229.26,7.98329557]
[1759710159149,3.30512027,229.27,229.26,8.69329557]
[1759710159463,20.8,229.33,229.26,8.69329557]
[1759710159618,10.87647521,229.44,229.3,7.98329557]
[1759710159823,0.2,229.45,229.34,7.98329557]
[1759710159824,32.74,229.45,229.34,7.98329557]
[1759710160040,3.30512027,229.35,229.34,7.98329557]
[1759710160581,2.4760074,229.48,229.36,7.98329557]
[1759710160844,34.0,229.5,229.41,7.98329557]
[1759710161054,5.08417786,229.42,229.41,7.98329557]
[1759710161257,5.08417786,229.42,229.39,7.98329557]
[1759710161439,20.8,229.46,229.36,7.98329557]
[1759710161440,5.08417786,229.4,229.36,7.98329557]
[1759710161622,5.08417786,229.38,229.34,7.98329557]
[1759710161827,32.6,229.49,229.41,7.98329557]
[1759710162064,20.8,229.46,229.41,7.98329557]
[1759710162231,5.08417786,229.42,229.41,7.98329557]
[1759710163243,5.08417786,229.42,229.39,7.98329557]
[1759710163458,5.08417786,229.4,229.39,7.98329557]
[1759710163845,5.08417786,229.4,229.35,7.98329557]
[1759710164045,5.08417786,229.36,229.35,7.98329557]
[1759710165264,5.08417786,229.36,229.33,7.98329557]
[1759710165466,5.08417786,229.34,229.29,8.69329557]
[1759710165636,5.08417786,229.3,229.29,8.69329557]
[1759710166037,5.08417786,229.3,229.29,7.98329557]
[1759710166257,5.08417786,229.3,229.27,7.98329557]
[1759710166551,5.08417786,229.28,229.27,7.98329557]
[1759710167251,0.7,229.3,229.29,7.98329557]
[1759710167452,5.78417786,229.3,229.29,7.98329557]
[1759710167632,0.7,229.3,229.29,7.98329557]
[1759710167838,0.7,229.3,229.29,8.68329557]
[1759710168051,5.08417786,229.33,229.29,8.68329557]
[1759710168355,10.87647521,229.43,229.33,7.98329557]
[1759710168530,5.08417786,229.34,229.33,7.98329557]
[1759710169533,5.08417786,229.34,229.33,8.68329557]
[1759710169740,5.08417786,229.34,229.33,7.98329557]
[1759710169940,5.08417786,229.34,229.31,7.98329557]
[1759710170172,0.66,229.47,229.38,7.98329557]
[1759710170359,5.08417786,229.4,229.38,7.98329557]
[1759710170563,5.08417786,229.4,229.38,8.68329557]
[1759710170767,5.08417786,229.4,229.38,7.98329557]
[1759710171070,5.08417786,229.4,229.28,10.87647521]
[1759710171071,32.66,229.39,229.36,7.98329557]
[1759710171255,5.08417786,229.37,229.36,7.98329557]
[1759710171456,32.66,229.39,229.33,7.98329557]
[1759710171764,32.66,229.39,229.37,7.98329557]
[1759710171969,5.08417786,229.38,229.37,8.68329557]
[1759710172479,5.08417786,229.39,229.37,8.68329557]
[1759710173162,5.08417786,229.41,229.4,7.98329557]
[1759710173853,21.46,229.47,229.4,7.98329557]
[1759710174183,5.08417786,229.43,229.42,7.98329557]
[1759710174353,10.87647521,229.52,229.44,7.98329557]
[1759710174563,5.08417786,229.45,229.44,7.98329557]
[1759710175368,0.66,229.53,229.44,7.98329557]
[1759710175674,5.08417786,229.48,229.46,7.98329557]
[1759710175877,32.62,229.52,229.49,7.98329557]
[1759710176066,0.66,229.56,229.49,7.98329557]
[1759710176067,5.08417786,229.5,229.49,7.98329557]
[1759710176252,5.08417786,229.5,229.47,7.98329557]
[1759710176450,5.08417786,229.48,229.47,7.98329557]
[1759710176880,5.08417786,229.48,229.45,7.98329557]
[1759710177057,5.08417786,229.46,229.45,7.98329557]
[1759710178180,5.08417786,229.46,229.45,8.68329557]
[1759710178358,5.08417786,229.46,229.45,7.98329557]
[1759710179772,32.56,229.5,229.45,7.98329557]
[1759710179970,5.08417786,229.46,229.45,8.68329557]
[1759710180471,32.56,229.5,229.45,7.98329557]
[1759710180686,5.08417786,229.5,229.49,7.98329557]
[1759710180860,0.66,229.56,229.49,7.98329557]
[1759710180861,5.08417786,229.51,229.49,8.68329557]
[1759710181578,32.56,229.55,229.52,7.98329557]
[1759710181774,5.08417786,229.54,229.52,7.98329557]
[1759710181975,32.56,229.55,229.52,7.98329557]
[1759710181976,5.08417786,229.53,229.52,7.98329557]
[1759710182675,20.8,229.5,229.46,7.98329557]
[1759710182873,5.08417786,229.47,229.46,7.98329557]
[1759710183585,5.08417786,229.47,229.44,7.98329557]
[1759710183891,5.08417786,229.45,229.42,7.98329557]
[1759710184068,5.08417786,229.43,229.42,7.98329557]
[1759710185504,5.08417786,229.43,229.4,7.98329557]
[1759710185681,5.08417786,229.41,229.4,7.98329557]
[1759710185879,20.8,229.46,229.38,7.98329557]
[1759710186184,32.5,229.46,229.43,7.98329557]
[1759710187506,5.08417786,229.44,229.43,7.98329557]
[1759710188003,20.8,229.49,229.45,7.98329557]
[1759710188183,32.48,229.51,229.45,7.98329557]
[1759710188392,5.08417786,229.46,229.45,7.98329557]
[1759710188876,5.08417786,229.46,229.45,8.68329557]
[1759710189080,5.08417786,229.5,229.49,7.98329557]
[1759710189306,5.08417786,229.5,229.49,8.68329557]
[1759710189494,32.48,229.55,229.49,7.98329557]
[1759710189697,32.48,229.55,229.52,7.98329557]
[1759710189906,5.08417786,229.53,229.52,7.98329557]
[1759710190909,5.08417786,229.53,229.5,7.98329557]
[1759710191112,5.08417786,229.51,229.5,7.98329557]
[1759710191883,5.08417786,229.51,229.5,8.68329557]
[1759710192083,5.08417786,229.53,229.52,7.98329557]
[1759710192319,5.08417786,229.68,229.52,7.98329557]
[1759710192320,10.87647521,229.61,229.55,7.98329557]
[1759710192522,32.46,229.61,229.57,7.98329557]
[1759710192807,5.08417786,229.58,229.57,7.98329557]
[1759710192994,32.46,229.61,229.57,7.98329557]
[1759710192995,5.08417786,229.61,229.58,0.7]
[1759710193183,5.08417786,229.61,229.6,7.98329557]
[1759710194483,32.56,229.65,229.6,7.98329557]
[1759710194484,0.1,229.65,229.62,7.98329557]
[1759710194698,5.08417786,229.63,229.62,7.98329557]
[1759710195007,5.08417786,229.63,229.6,7.98329557]
[1759710195310,5.08417786,229.63,229.56,7.98329557]
[1759710195311,5.08417786,229.61,229.56,7.98329557]
[1759710195492,5.08417786,229.57,229.56,7.98329557]
[1759710196090,5.08417786,229.57,229.56,8.68329557]
[1759710196442,33.14,229.63,229.57,7.98329557]
[1759710196714,33.14,229.63,229.55,7.98329557]
[1759710196715,5.08417786,229.58,229.55,7.98329557]
[1759710196919,5.08417786,229.56,229.53,7.98329557]
[1759710197126,0.66,229.57,229.53,7.98329557]
[1759710197127,5.08417786,229.54,229.53,7.98329557]
[1759710197327,32.48,229.61,229.53,8.68329557]
[1759710197614,5.08417786,229.54,229.53,8.68329557]
[1759710197799,5.08417786,229.54,229.53,7.98329557]
[1759710202029,5.08417786,229.54,229.49,7.98329557]
[1759710202231,5.08417786,229.5,229.49,8.67329557]
[1759710202438,5.08417786,229.5,229.49,7.98329557]
[1759710204518,5.08417786,229.5,229.47,8.67329557]
[1759710204835,5.08417786,229.48,229.47,8.67329557]
[1759710205032,5.08417786,229.48,229.47,7.98329557]
[1759710205462,5.08417786,229.48,229.45,7.98329557]
[1759710205631,5.08417786,229.46,229.45,7.98329557]
[1759710205940,5.08417786,229.46,229.45,8.67329557]
[1759710206340,0.69,229.52,229.45,8.67329557]
[1759710206537,32.36,229.53,229.48,7.98329557]
[1759710206837,5.08417786,229.49,229.48,7.98329557]
[1759710208311,5.08417786,229.49,229.48,8.67329557]
[1759710212440,5.08417786,229.49,229.48,7.98329557]
[1759710212946,5.08417786,229.49,229.48,8.67329557]
[1759710213117,5.08417786,229.49,229.48,7.98329557]
[1759710213323,5.08417786,229.49,229.45,7.98329557]
[1759710213633,0.68,229.52,229.48,7.98329557]
[1759710213836,0.68,229.52,229.43,7.98329557]
[1759710213837,25.88417786,229.49,229.43,7.98329557]
[1759710214033,5.08417786,229.44,229.41,7.98329557]
[1759710214344,20.8,229.45,229.42,7.98329557]
[1759710214547,21.48,229.45,229.42,7.98329557]
[1759710214847,21.48,229.44,229.39,7.98329557]
[1759710215143,5.08417786,229.4,229.39,7.98329557]
[1759710216142,20.8,229.44,229.41,7.98329557]
[1759710216340,20.8,229.47,229.44,7.98329557]
[1759710216537,5.08417786,229.45,229.44,7.98329557]
[1759710219332,20.8,229.49,229.44,8.66329557]
[1759710219652,0.68,229.58,229.51,7.98329557]
[1759710219843,32.24,229.58,229.53,7.98329557]
[1759710220038,5.08417786,229.54,229.53,7.98329557]
[1759710221046,53.04,229.58,229.53,7.98329557]
[1759710221236,0.68,229.57,229.53,7.98329557]
[1759710221437,32.9,229.57,229.53,7.98329557]
[1759710221938,32.9,229.57,229.51,7.98329557]
[1759710222141,32.9,229.57,229.53,7.98329557]
[1759710222542,0.68,229.57,229.53,7.98329557]
[1759710222851,32.88,229.57,229.53,7.98329557]
[1759710223061,0.68,229.57,229.53,7.98329557]
[1759710223241,0.68,229.56,229.51,7.98329557]
[1759710223555,32.2,229.57,229.53,7.98329557]
[1759710223761,32.18,229.57,229.53,7.98329557]
[1759710224261,32.86,229.57,229.53,7.98329557]
[1759710224831,32.86,229.57,229.51,7.98329557]
[1759710225047,32.86,229.57,229.53,7.98329557]
[1759710226833,32.18,229.57,229.53,7.98329557]
[1759710227063,0.68,229.56,229.51,7.98329557]
[1759710227265,0.68,229.56,229.53,7.98329557]
[1759710227445,3.31457182,229.54,229.51,7.98329557]
[1759710227752,3.31457182,229.52,229.51,7.98329557]
[1759710228653,35.49457182,229.52,229.51,7.98329557]
[1759710229558,36.16457182,229.52,229.49,7.98329557]
[1759710229755,3.31457182,229.5,229.49,7.98329557]
[1759710230262,3.31457182,229.5,229.49,8.65329557]
[1759710231254,3.31457182,229.5,229.49,7.98329557]
[1759710232660,3.31457182,229.5,229.47,7.98329557]
[1759710232661,28.09914364,229.5,229.47,7.98329557]
[1759710232840,3.31457182,229.48,229.44,7.98329557]
[1759710233040,3.31457182,229.45,229.44,7.98329557]
[1759710234252,32.18,229.48,229.46,7.98329557]
[1759710234441,20.8,229.5,229.46,7.98329557]
[1759710234646,32.18,229.49,229.48,7.98329557]
[1759710234856,32.18,229.52,229.5,7.98329557]
[1759710235046,3.31457182,229.51,229.5,8.65329557]
[1759710236169,3.31457182,229.53,229.52,7.98329557]
[1759710236362,0.67,229.61,229.52,8.65329557]
[1759710236549,2.27434622,229.64,229.57,7.98329557]
[1759710236751,32.18,229.63,229.59,7.98329557]
[1759710237069,52.98,229.63,229.59,7.98329557]
[1759710237765,53.65,229.63,229.59,7.98329557]
[1759710237973,3.31457182,229.6,229.59,7.98329557]
[1759710240243,52.98,229.63,229.59,7.98329557]
[1759710240459,3.31457182,229.6,229.59,8.65329557]
[1759710240652,3.31457182,229.6,229.59,7.98329557]
[1759710240962,3.31457182,229.6,229.59,8.65329557]
[1759710241365,3.31457182,229.6,229.59,7.98329557]
[1759710242668,24.78457182,229.6,229.56,7.98329557]
[1759710242974,3.31457182,229.57,229.56,7.98329557]
[1759710243547,3.31457182,229.57,229.56,8.65329557]
[1759710243969,3.31457182,229.57,229.56,7.98329557]
[1759710244973,3.31457182,229.57,229.52,7.98329557]
[1759710244974,20.8,229.55,229.52,7.98329557]
[1759710245145,3.31457182,229.53,229.52,7.98329557]
[1759710245599,3.31457182,229.53,229.49,7.98329557]
[1759710245600,3.98457182,229.53,229.49,7.98329557]
[1759710245786,3.98457182,229.53,229.44,7.98329557]
[1759710245787,27.42914364,229.5,229.44,7.98329557]
[1759710246086,32.16,229.49,229.47,7.98329557]
[1759710246466,32.16,229.49,229.47,8.65329557]
[1759710246964,32.16,229.49,229.47,7.98329557]
[1759710247165,3.31457182,229.48,229.47,7.98329557]
[1759710247379,3.31457182,229.48,229.44,7.98329557]
[1759710247380,3.98457182,229.48,229.44,7.98329557]
[1759710247580,3.31457182,229.45,229.44,7.98329557]
[1759710247770,35.47457182,229.45,229.44,7.98329557]
[1759710248169,32.16,229.45,229.44,7.98329557]
[1759710248380,35.47457182,229.45,229.44,7.98329557]
[1759710248683,3.31457182,229.45,229.44,7.98329557]
[1759710249004,35.47457182,229.45,229.44,7.98329557]
[1759710249978,61.19558985,230.28,229.44,7.98329557]
[1759710249979,20.8,229.52,229.46,7.98329557]
[1759710250202,137.83295556,229.58,229.35,20.8]
[1759710250203,134.2,229.58,229.49,7.98329557]
[1759710250379,10.87647521,229.57,229.52,7.98329557]
[1759710250697,32.16,229.56,229.54,7.98329557]
[1759710251192,35.47457182,229.55,229.54,7.98329557]
[1759710251769,32.16,229.55,229.54,7.98329557]
[1759710252073,36.14457182,229.55,229.52,7.98329557]
[1759710252276,3.31457182,229.53,229.52,7.98329557]
[1759710252490,3.31457182,229.53,229.5,7.98329557]
[1759710252677,3.31457182,229.51,229.5,7.98329557]
[1759710252882,20.8,229.49,229.43,8.65329557]
[1759710253196,32.16,229.48,229.47,7.98329557]
[1759710253891,32.16,229.48,229.44,7.98329557]
[1759710254066,32.83,229.48,229.44,7.98329557]
[1759710254265,3.31457182,229.45,229.44,7.98329557]
[1759710254486,35.47457182,229.45,229.44,7.98329557]
[1759710256376,32.16,229.45,229.44,7.98329557]
[1759710256581,35.47457182,229.45,229.44,8.65329557]
[1759710257872,35.47457182,229.45,229.44,7.98329557]
[1759710259893,3.31457182,229.45,229.44,7.98329557]
[1759710260102,35.47457182,229.45,229.44,7.98329557]
[1759710260290,35.47457182,229.45,229.42,7.98329557]
[1759710260619,35.47457182,229.45,229.37,7.98329557]
[1759710260620,7.6733174,229.43,229.37,7.98329557]
[1759710260772,3.31457182,229.38,229.37,7.98329557]
[1759710260974,35.47457182,229.38,229.37,7.98329557]
[1759710261784,35.47457182,229.38,229.35,7.98329557]
[1759710261982,3.31457182,229.36,229.35,7.98329557]
[1759710262180,38.78914364,229.36,229.33,7.98329557]
[1759710262378,3.31457182,229.34,229.33,7.98329557]
[1759710262597,35.47457182,229.34,229.33,7.98329557]
[1759710262988,35.47457182,229.34,229.29,8.64329557]
[1759710263190,3.31457182,229.3,229.29,7.98329557]
[1759710263896,3.31457182,229.3,229.25,7.98329557]
[1759710264076,0.7,229.32,229.25,7.98329557]
[1759710264077,3.31457182,229.26,229.25,7.98329557]
[1759710265213,3.31457182,229.26,229.22,7.98329557]
[1759710265512,3.31457182,229.24,229.22,7.98329557]
[1759710265717,32.16,229.23,229.22,7.98329557]
[1759710266079,3.31457182,229.23,229.22,7.98329557]
[1759710266298,35.47457182,229.23,229.22,7.98329557]
[1759710268122,3.31457182,229.23,229.22,7.98329557]
[1759710268446,20.8,229.26,229.22,7.98329557]
[1759710268447,32.16,229.26,229.24,7.98329557]
[1759710268626,3.31457182,229.25,229.24,7.98329557]
[1759710269427,3.31457182,229.25,229.19,7.98329557]
[1759710269634,3.31457182,229.2,229.19,7.98329557]
[1759710269917,3.31457182,229.2,229.19,8.64329557]
[1759710270214,3.31457182,229.22,229.19,8.64329557]
[1759710270430,3.31457182,229.22,229.12,20.8]
[1759710270431,3.31457182,229.22,229.21,7.98329557]
[1759710270724,3.31457182,229.22,229.21,8.64329557]
[1759710271316,3.31457182,229.22,229.21,7.98329557]
[1759710272423,32.16,229.25,229.24,7.98329557]
[1759710272600,35.47457182,229.25,229.24,7.98329557]
[1759710273121,3.31457182,229.25,229.24,7.98329557]
[1759710273323,35.49457182,229.25,229.24,7.98329557]
[1759710273620,35.49457182,229.25,229.13,10.87647521]
[1759710273621,20.8,229.22,229.16,7.98329557]
[1759710273819,3.31457182,229.17,229.16,7.98329557]
[1759710274302,20.8,229.25,229.2,7.98329557]
[1759710274502,3.31457182,229.21,229.2,7.98329557]
[1759710274711,35.49457182,229.21,229.15,7.98329557]
[1759710274916,3.31457182,229.16,229.15,7.98329557]
[1759710275220,3.31457182,229.16,229.15,8.64329557]
[1759710277503,32.39647521,229.16,229.07,0.2]
[1759710277701,20.8,229.08,229.07,0.2]
[1759710278006,35.55457182,229.08,229.07,0.2]
[1759710279718,20.8,229.12,229.07,0.2]
[1759710279935,3.31457182,229.08,229.07,0.2]
[1759710280231,35.51457182,229.08,229.07,0.2]
[1759710280603,20.8,229.12,229.08,7.98329557]
[1759710280825,32.2,229.11,229.1,7.98329557]
[1759710281026,3.31457182,229.11,229.1,8.67329557]
[1759710281233,35.51457182,229.11,229.1,8.67329557]
[1759710281812,3.31457182,229.11,229.1,8.67329557]
[1759710282830,3.31457182,229.11,229.1,7.98329557]
[1759710283049,5.09796419,229.11,229.1,7.98329557]
[1759710285329,32.18,229.11,229.1,7.98329557]
[1759710285533,5.09796419,229.11,229.1,7.98329557]
[1759710285718,37.27796419,229.11,229.1,7.98329557]
[1759710286558,5.09796419,229.11,229.1,7.98329557]
[1759710286745,20.8,229.13,229.1,7.98329557]
[1759710286940,5.09796419,229.11,229.1,7.98329557]
[1759710287240,5.09796419,229.11,229.08,7.98329557]
[1759710287445,5.09796419,229.09,229.08,7.98329557]
[1759710287647,37.27796419,229.09,229.08,7.98329557]
[1759710288433,37.95796419,229.09,229.07,0.2]
[1759710289150,37.27796419,229.09,229.07,0.2]
[1759710289643,37.27796419,229.09,229.08,7.98329557]
[1759710290134,37.27796419,229.09,229.08,8.64329557]
[1759710290135,37.29796419,229.09,229.08,8.64329557]
[1759710290341,5.09796419,229.09,229.08,8.64329557]
[1759710290742,37.29796419,229.09,229.08,8.64329557]
[1759710291531,32.2,229.09,229.08,8.64329557]
[1759710291731,5.09796419,229.09,229.08,7.98329557]
[1759710292031,37.29796419,229.09,229.07,0.2]
[1759710292558,37.29796419,229.09,229.08,7.98329557]
[1759710293349,20.8,229.14,229.1,7.98329557]
[1759710293556,5.09796419,229.11,229.1,7.98329557]
[1759710294736,5.77796419,229.11,229.08,7.98329557]
[1759710294933,5.09796419,229.09,229.08,7.98329557]
[1759710295435,5.77796419,229.09,229.07,0.2]
[1759710295624,5.09796419,229.09,229.07,0.2]
[1759710297846,5.09796419,229.09,229.08,7.98329557]
[1759710298243,37.29796419,229.09,229.08,7.98329557]
[1759710299437,37.29796419,229.09,229.07,0.2]
[1759710299835,0.68,229.08,229.07,0.2]
[1759710300337,0.68,229.08,229.02,0.66]
[1759710300338,20.8,229.05,228.96,7.98329557]
[1759710300549,5.09796419,228.97,228.94,8.64329557]
[1759710300862,20.8,229.01,228.99,7.98329557]
[1759710301150,0.68,229.06,228.99,7.98329557]
[1759710301151,37.29796419,229.0,228.99,7.98329557]
[1759710301642,37.29796419,229.0,228.96,8.64329557]
[1759710301947,5.09796419,228.97,228.96,7.98329557]
[1759710302160,37.29796419,228.97,228.94,7.98329557]
[1759710302340,5.09796419,228.95,228.94,7.98329557]
[1759710302726,32.2,228.97,228.92,8.18329557]
[1759710302943,5.09796419,228.93,228.92,8.18329557]
[1759710303234,32.2,228.93,228.92,8.18329557]
[1759710303426,37.29796419,228.93,228.92,8.84329557]
[1759710303838,37.29796419,228.93,228.92,8.18329557]
[1759710304033,37.29796419,228.93,228.92,0.2]
[1759710304841,37.97796419,228.93,228.92,0.2]
[1759710305351,37.97796419,228.93,228.89,0.2]